[Event "*** Titled Tuesday Blitz"]
[Site "Chess.com"]
[Date "2020.04.21"]
[Round "9"]
[White "Fandorine"]
[Black "VerdeNotte"]
[Result "0-1"]
[WhiteElo "2880"]
[BlackElo "2763"]
[TimeControl "180+1"]
[EndTime "11:50:30 PDT"]
[Termination "VerdeNotte won by resignation"]

1. e4 {[%clk 0:03:00.9]} 1... e5 {[%clk 0:02:57.7]} 2. Nf3 {[%clk 0:03:00.9]}
2... Nc6 {[%clk 0:02:58.1]} 3. d4 {[%clk 0:02:58.8]} 3... exd4 {[%clk
0:02:58.1]} 4. Nxd4 {[%clk 0:02:59.7]} 4... Nf6 {[%clk 0:02:58.2]} 5. Nxc6
{[%clk 0:02:54.5]} 5... bxc6 {[%clk 0:02:59.1]} 6. Bd3 {[%clk 0:02:55.1]} 6...
d5 {[%clk 0:02:59.1]} 7. exd5 {[%clk 0:02:56]} 7... cxd5 {[%clk 0:02:59.1]} 8.
O-O {[%clk 0:02:56.9]} 8... Be7 {[%clk 0:02:58.4]} 9. c4 {[%clk 0:02:56.9]} 9...
O-O {[%clk 0:02:43.7]} 10. cxd5 {[%clk 0:02:55.3]} 10... Bb7 {[%clk 0:02:41.4]}
11. Nc3 {[%clk 0:02:55.7]} 11... Nxd5 {[%clk 0:02:41.1]} 12. Bd2 {[%clk
0:02:56]} 12... Nxc3 {[%clk 0:02:37.9]} 13. Bxc3 {[%clk 0:02:56.9]} 13... Qd5
{[%clk 0:02:38]} 14. Qg4 {[%clk 0:02:52.6]} 14... Qg5 {[%clk 0:02:22.3]} 15.
Qxg5 {[%clk 0:02:47]} 15... Bxg5 {[%clk 0:02:23.2]} 16. Bc4 {[%clk 0:02:38.9]}
16... Rad8 {[%clk 0:02:14.2]} 17. Rfd1 {[%clk 0:02:35.3]} 17... Rxd1+ {[%clk
0:02:11.9]} 18. Rxd1 {[%clk 0:02:34.6]} 18... Rd8 {[%clk 0:02:12.8]} 19. Rxd8+
{[%clk 0:02:31.2]} 19... Bxd8 {[%clk 0:02:13.7]} 20. f3 {[%clk 0:02:30.6]} 20...
Kf8 {[%clk 0:02:05.7]} 21. Bd4 {[%clk 0:02:28.4]} 21... a5 {[%clk 0:01:57.7]}
22. Kf2 {[%clk 0:02:27.2]} 22... Be7 {[%clk 0:01:49.7]} 23. b3 {[%clk
0:02:25.4]} 23... Bb4 {[%clk 0:01:46.9]} 24. Ke2 {[%clk 0:02:21.4]} 24... f6
{[%clk 0:01:47]} 25. Bb2 {[%clk 0:02:11.3]} 25... Ke7 {[%clk 0:01:44.4]} 26. h4
{[%clk 0:01:49.4]} 26... h5 {[%clk 0:01:41.5]} 27. Bd3 {[%clk 0:01:34]} 27...
Kf7 {[%clk 0:01:38.7]} 28. a3 {[%clk 0:01:22.7]} 28... Bd6 {[%clk 0:01:36]} 29.
a4 {[%clk 0:01:12]} 29... Bd5 {[%clk 0:01:33.4]} 30. Bc2 {[%clk 0:01:04]} 30...
c5 {[%clk 0:01:17]} 31. Bc3 {[%clk 0:01:00.6]} 31... Bc7 {[%clk 0:01:17.2]} 32.
Be1 {[%clk 0:00:48.2]} 32... g5 {[%clk 0:01:14.5]} 33. g4 {[%clk 0:00:20.5]}
33... hxg4 {[%clk 0:00:41.5]} 34. fxg4 {[%clk 0:00:21.4]} 34... c4 {[%clk
0:00:37.8]} 35. bxc4 {[%clk 0:00:12.4]} 35... Bxc4+ {[%clk 0:00:38.7]} 36. Kf3
{[%clk 0:00:12.8]} 36... gxh4 {[%clk 0:00:36]} 37. Bxh4 {[%clk 0:00:12.2]} 37...
Be5 {[%clk 0:00:35]} 38. Be1 {[%clk 0:00:10.6]} 38... Bc7 {[%clk 0:00:32.1]} 39.
Ke4 {[%clk 0:00:09.6]} 39... Ke7 {[%clk 0:00:28.5]} 40. Kd4 {[%clk 0:00:08.8]}
40... Be2 {[%clk 0:00:25.1]} 41. Kc5 {[%clk 0:00:03.7]} 41... Bxg4 {[%clk
0:00:24.1]} 42. Kc6 {[%clk 0:00:03.8]} 42... Bd8 {[%clk 0:00:23.2]} 43. Kb5
{[%clk 0:00:02]} 43... Bd7+ {[%clk 0:00:17.7]} 44. Ka6 {[%clk 0:00:02.5]} 44...
Bg4 {[%clk 0:00:11.5]} 45. Bxa5 {[%clk 0:00:02.1]} 45... Be2+ {[%clk 0:00:11.3]}
46. Kb7 {[%clk 0:00:02]} 46... Bxa5 {[%clk 0:00:11.3]} 47. Kc6 {[%clk
0:00:02.9]} 47... Ke6 {[%clk 0:00:11]} 48. Bb3+ {[%clk 0:00:03.8]} 48... Ke5
{[%clk 0:00:11.2]} 49. Bc4 {[%clk 0:00:04.6]} 49... Bxc4 {[%clk 0:00:10.8]} 0-1

[Event "*** Titled Tuesday Blitz"]
[Site "Chess.com"]
[Date "2020.04.21"]
[Round "9"]
[White "PauloCesarCosta_sad"]
[Black "AnastasiaProtopopova"]
[Result "0-1"]
[WhiteElo "2085"]
[BlackElo "2296"]
[TimeControl "180+1"]
[EndTime "11:50:31 PDT"]
[Termination "AnastasiaProtopopova won on time"]

1. Nf3 {[%clk 0:03:00.9]} 1... d5 {[%clk 0:02:59.6]} 2. d4 {[%clk 0:03:00.6]}
2... Nf6 {[%clk 0:02:58.8]} 3. c4 {[%clk 0:03:01]} 3... c6 {[%clk 0:02:58.5]} 4.
e3 {[%clk 0:02:58.2]} 4... Bf5 {[%clk 0:02:50.9]} 5. Bd3 {[%clk 0:02:57.9]} 5...
Bxd3 {[%clk 0:02:48]} 6. Qxd3 {[%clk 0:02:58.8]} 6... e6 {[%clk 0:02:48.5]} 7.
O-O {[%clk 0:02:57.4]} 7... Be7 {[%clk 0:02:47]} 8. Nc3 {[%clk 0:02:57.1]} 8...
O-O {[%clk 0:02:47.3]} 9. e4 {[%clk 0:02:56.8]} 9... dxe4 {[%clk 0:02:47.8]} 10.
Nxe4 {[%clk 0:02:56.9]} 10... Nxe4 {[%clk 0:02:45.2]} 11. Qxe4 {[%clk
0:02:56.5]} 11... Nd7 {[%clk 0:02:46.1]} 12. Be3 {[%clk 0:02:47.4]} 12... Nf6
{[%clk 0:02:26.5]} 13. Qc2 {[%clk 0:02:42.8]} 13... h6 {[%clk 0:02:22.6]} 14.
Rad1 {[%clk 0:02:40]} 14... Qc7 {[%clk 0:02:22.1]} 15. h3 {[%clk 0:02:38.4]}
15... Rfd8 {[%clk 0:02:13.6]} 16. b3 {[%clk 0:02:36.6]} 16... c5 {[%clk
0:02:11.1]} 17. dxc5 {[%clk 0:02:35]} 17... Bxc5 {[%clk 0:02:09.7]} 18. Bxc5
{[%clk 0:02:32.6]} 18... Qxc5 {[%clk 0:02:10.6]} 19. Rfe1 {[%clk 0:02:14.8]}
19... a5 {[%clk 0:01:38.9]} 20. Rxd8+ {[%clk 0:01:56.2]} 20... Rxd8 {[%clk
0:01:38]} 21. Re5 {[%clk 0:01:55.2]} 21... Qc7 {[%clk 0:01:33]} 22. Re1 {[%clk
0:01:46.8]} 22... Qd6 {[%clk 0:01:25.7]} 23. Re2 {[%clk 0:01:43.7]} 23... Qd1+
{[%clk 0:01:18.8]} 24. Qxd1 {[%clk 0:01:34.9]} 24... Rxd1+ {[%clk 0:01:19.7]}
25. Re1 {[%clk 0:01:34]} 25... Rd3 {[%clk 0:01:06.6]} 26. Kf1 {[%clk 0:01:32.2]}
26... Rc3 {[%clk 0:00:43.6]} 27. Re2 {[%clk 0:01:22.3]} 27... Kf8 {[%clk
0:00:30.9]} 28. Rd2 {[%clk 0:00:58.8]} 28... Ke7 {[%clk 0:00:29.6]} 29. Rb2
{[%clk 0:00:47.1]} 29... Ne4 {[%clk 0:00:26.3]} 30. Re2 {[%clk 0:00:41.6]} 30...
Nc5 {[%clk 0:00:22.5]} 31. Nd4 {[%clk 0:00:34.8]} 31... Rd3 {[%clk 0:00:18.1]}
32. Nf5+ {[%clk 0:00:30.5]} 32... Kf6 {[%clk 0:00:17.1]} 33. Ng3 {[%clk
0:00:26.5]} 33... a4 {[%clk 0:00:15.3]} 34. b4 {[%clk 0:00:19]} 34... Na6 {[%clk
0:00:15.1]} 35. Ne4+ {[%clk 0:00:17.2]} 35... Ke7 {[%clk 0:00:15.4]} 36. b5
{[%clk 0:00:16.8]} 36... Nc7 {[%clk 0:00:08.1]} 37. Rd2 {[%clk 0:00:11.7]} 37...
Ra3 {[%clk 0:00:06.2]} 38. Nc5 {[%clk 0:00:10.2]} 38... Ne8 {[%clk 0:00:02.5]}
39. Rd7+ {[%clk 0:00:09.7]} 39... Kf6 {[%clk 0:00:02.3]} 40. Rxb7 {[%clk
0:00:08.5]} 40... Rxa2 {[%clk 0:00:02]} 41. Nd7+ {[%clk 0:00:08.8]} 41... Kg6
{[%clk 0:00:01.7]} 42. b6 {[%clk 0:00:08.4]} 42... Nd6 {[%clk 0:00:01.5]} 43.
Rc7 {[%clk 0:00:06.3]} 43... Rb2 {[%clk 0:00:01.6]} 44. c5 {[%clk 0:00:06.2]}
44... Nb5 {[%clk 0:00:01.4]} 0-1

[Event "*** Titled Tuesday Blitz"]
[Site "Chess.com"]
[Date "2020.04.21"]
[Round "9"]
[White "Shant_Sargsyan"]
[Black "wonderfultime"]
[Result "1-0"]
[WhiteElo "3010"]
[BlackElo "2914"]
[TimeControl "180+1"]
[EndTime "11:50:32 PDT"]
[Termination "Shant_Sargsyan won by resignation"]

1. d4 {[%clk 0:03:00.9]} 1... d5 {[%clk 0:02:57.3]} 2. c4 {[%clk 0:03:00.5]}
2... c6 {[%clk 0:02:57.5]} 3. Nf3 {[%clk 0:02:55]} 3... Nf6 {[%clk 0:02:57.8]}
4. Nc3 {[%clk 0:02:54.6]} 4... a6 {[%clk 0:02:58]} 5. c5 {[%clk 0:02:47.1]} 5...
Nbd7 {[%clk 0:02:56.8]} 6. Bf4 {[%clk 0:02:44]} 6... Nh5 {[%clk 0:02:57]} 7. Bd2
{[%clk 0:02:37]} 7... Nhf6 {[%clk 0:02:57]} 8. Bf4 {[%clk 0:02:35.6]} 8... Nh5
{[%clk 0:02:57.2]} 9. e3 {[%clk 0:02:36.1]} 9... g6 {[%clk 0:02:43.7]} 10. Be2
{[%clk 0:02:27.2]} 10... Nxf4 {[%clk 0:02:43.7]} 11. exf4 {[%clk 0:02:27.2]}
11... Bg7 {[%clk 0:02:44.4]} 12. O-O {[%clk 0:02:26.1]} 12... O-O {[%clk
0:02:44.6]} 13. Re1 {[%clk 0:02:24.1]} 13... Qc7 {[%clk 0:02:38.1]} 14. g3
{[%clk 0:02:21.1]} 14... Re8 {[%clk 0:02:16.7]} 15. h4 {[%clk 0:02:13.1]} 15...
f6 {[%clk 0:02:05.1]} 16. h5 {[%clk 0:02:08.5]} 16... e5 {[%clk 0:02:00.2]} 17.
hxg6 {[%clk 0:02:04.9]} 17... hxg6 {[%clk 0:02:01.1]} 18. dxe5 {[%clk
0:01:48.6]} 18... fxe5 {[%clk 0:02:01.1]} 19. Nxd5 {[%clk 0:01:34.7]} 19... cxd5
{[%clk 0:02:02]} 20. Qxd5+ {[%clk 0:01:34.8]} 20... Kf8 {[%clk 0:01:53.9]} 21.
Nh4 {[%clk 0:01:34.9]} 21... Qc6 {[%clk 0:01:43.7]} 22. Qxc6 {[%clk 0:01:35.3]}
22... bxc6 {[%clk 0:01:44.6]} 23. Nxg6+ {[%clk 0:01:35.9]} 23... Kf7 {[%clk
0:01:44.9]} 24. Bh5 {[%clk 0:01:35.7]} 24... Kg8 {[%clk 0:01:18]} 25. Nxe5
{[%clk 0:01:35.2]} 25... Nxe5 {[%clk 0:00:32.8]} 26. Bxe8 {[%clk 0:01:34.9]}
26... Bg4 {[%clk 0:00:12.1]} 27. fxe5 {[%clk 0:01:00.2]} 27... Rxe8 {[%clk
0:00:11.7]} 28. f4 {[%clk 0:00:58.6]} 28... Rd8 {[%clk 0:00:11.6]} 29. Re3
{[%clk 0:00:47.9]} 29... Bf8 {[%clk 0:00:08.5]} 30. Rc1 {[%clk 0:00:41.2]} 30...
Rd2 {[%clk 0:00:07.6]} 31. Ra3 {[%clk 0:00:29.6]} 31... Rxb2 {[%clk 0:00:07.4]}
32. Rxa6 {[%clk 0:00:29.6]} 32... Bf3 {[%clk 0:00:07.4]} 33. Ra8 {[%clk
0:00:24.9]} 33... Kg7 {[%clk 0:00:05.4]} 34. Ra7+ {[%clk 0:00:23.7]} 34... Kg6
{[%clk 0:00:05.2]} 35. e6 {[%clk 0:00:23.1]} 35... Re2 {[%clk 0:00:05.2]} 36.
Rf7 {[%clk 0:00:19.7]} 36... Bg7 {[%clk 0:00:04.2]} 37. f5+ {[%clk 0:00:20]}
37... Kh6 {[%clk 0:00:04.4]} 38. f6 {[%clk 0:00:16.7]} 38... Bh8 {[%clk
0:00:04.4]} 39. Rf8 {[%clk 0:00:16.6]} 39... Kh7 {[%clk 0:00:03.3]} 40. Rd1
{[%clk 0:00:11.8]} 40... Rxe6 {[%clk 0:00:01.7]} 41. Rxh8+ {[%clk 0:00:10.3]}
41... Kxh8 {[%clk 0:00:01.3]} 42. Rd8+ {[%clk 0:00:10.4]} 42... Kh7 {[%clk
0:00:01.7]} 43. f7 {[%clk 0:00:10.7]} 43... Re1+ {[%clk 0:00:01.3]} 44. Kf2
{[%clk 0:00:10.5]} 1-0

[Event "*** Titled Tuesday Blitz"]
[Site "Chess.com"]
[Date "2020.04.21"]
[Round "9"]
[White "canhhuan"]
[Black "hellokostya"]
[Result "1-0"]
[WhiteElo "2658"]
[BlackElo "2485"]
[TimeControl "180+1"]
[EndTime "11:50:32 PDT"]
[Termination "canhhuan won on time"]

1. e4 {[%clk 0:03:00.9]} 1... Nc6 {[%clk 0:02:58.3]} 2. Nc3 {[%clk 0:02:58.9]}
2... d6 {[%clk 0:02:58.3]} 3. d4 {[%clk 0:02:43.9]} 3... Nf6 {[%clk 0:02:49.9]}
4. g3 {[%clk 0:02:39.8]} 4... g6 {[%clk 0:02:47.2]} 5. Bg2 {[%clk 0:02:39.3]}
5... Bg7 {[%clk 0:02:46.6]} 6. Nge2 {[%clk 0:02:39]} 6... O-O {[%clk 0:02:45.1]}
7. O-O {[%clk 0:02:38.6]} 7... e5 {[%clk 0:02:40.6]} 8. h3 {[%clk 0:02:32.1]}
8... exd4 {[%clk 0:02:30.3]} 9. Nxd4 {[%clk 0:02:13.3]} 9... Nxe4 {[%clk
0:02:29.8]} 10. Nxc6 {[%clk 0:02:12.8]} 10... Nxc3 {[%clk 0:02:29.1]} 11. Nxd8
{[%clk 0:02:08.4]} 11... Nxd1 {[%clk 0:02:27.2]} 12. Nxb7 {[%clk 0:02:05.5]}
12... Bxb7 {[%clk 0:02:16.3]} 13. Bxb7 {[%clk 0:02:03.5]} 13... Rab8 {[%clk
0:02:15.3]} 14. Rxd1 {[%clk 0:01:59.3]} 14... Rxb7 {[%clk 0:02:15]} 15. Rb1
{[%clk 0:01:55.4]} 15... Re8 {[%clk 0:02:10.2]} 16. Kf1 {[%clk 0:01:54.5]} 16...
Be5 {[%clk 0:02:03.4]} 17. b3 {[%clk 0:01:52.4]} 17... f5 {[%clk 0:02:01.5]} 18.
c4 {[%clk 0:01:50.6]} 18... Kf7 {[%clk 0:01:59.6]} 19. Kg2 {[%clk 0:01:43.8]}
19... a5 {[%clk 0:01:55]} 20. Be3 {[%clk 0:01:39.4]} 20... Ra8 {[%clk
0:01:51.3]} 21. c5 {[%clk 0:01:10.2]} 21... a4 {[%clk 0:01:48.9]} 22. cxd6
{[%clk 0:01:09]} 22... Bxd6 {[%clk 0:01:45]} 23. bxa4 {[%clk 0:00:56]} 23...
Rxb1 {[%clk 0:01:45.9]} 24. Rxb1 {[%clk 0:00:55.4]} 24... Rxa4 {[%clk
0:01:46.5]} 25. Rb2 {[%clk 0:00:55.2]} 25... Ke6 {[%clk 0:01:45.9]} 26. Rd2
{[%clk 0:00:52.9]} 26... c5 {[%clk 0:01:42.5]} 27. Kf3 {[%clk 0:00:51.4]} 27...
c4 {[%clk 0:01:41.5]} 28. h4 {[%clk 0:00:43.7]} 28... c3 {[%clk 0:01:37.3]} 29.
Rc2 {[%clk 0:00:42.3]} 29... Be5 {[%clk 0:01:37.1]} 30. Ke2 {[%clk 0:00:40.2]}
30... Kd5 {[%clk 0:01:35.5]} 31. Kd3 {[%clk 0:00:40]} 31... h5 {[%clk
0:01:31.4]} 32. Bc1 {[%clk 0:00:31.6]} 32... Re4 {[%clk 0:01:27.3]} 33. Be3
{[%clk 0:00:19.5]} 33... Rb4 {[%clk 0:01:23.6]} 34. Bc1 {[%clk 0:00:18.8]} 34...
Rb1 {[%clk 0:01:02.6]} 35. Be3 {[%clk 0:00:18.3]} 35... Rd1+ {[%clk 0:01:00.9]}
36. Ke2 {[%clk 0:00:18.1]} 36... Rh1 {[%clk 0:00:51.4]} 37. Kd3 {[%clk
0:00:17.8]} 37... Rh3 {[%clk 0:00:49.4]} 38. a4 {[%clk 0:00:17.2]} 38... Rh1
{[%clk 0:00:49.4]} 39. Ra2 {[%clk 0:00:16.7]} 39... Rd1+ {[%clk 0:00:48.9]} 40.
Ke2 {[%clk 0:00:16.2]} 40... Rb1 {[%clk 0:00:48]} 41. Kd3 {[%clk 0:00:15.2]}
41... Rb2 {[%clk 0:00:24.9]} 42. Ra3 {[%clk 0:00:14.7]} 42... Kc6 {[%clk
0:00:17.4]} 43. a5 {[%clk 0:00:14.3]} 43... c2 {[%clk 0:00:17.2]} 44. a6 {[%clk
0:00:12.9]} 44... Bd6 {[%clk 0:00:07.5]} 45. Rc3+ {[%clk 0:00:11.9]} 45... Kb5
{[%clk 0:00:07]} 46. a7 {[%clk 0:00:09.6]} 46... Ra2 {[%clk 0:00:07]} 47. Rxc2
{[%clk 0:00:09.4]} 47... Ra3+ {[%clk 0:00:07.4]} 48. Ke2 {[%clk 0:00:09.3]}
48... Be5 {[%clk 0:00:06.6]} 49. Rd2 {[%clk 0:00:08.8]} 49... Kc4 {[%clk
0:00:03.9]} 50. Rd8 {[%clk 0:00:08.5]} 50... Bc3 {[%clk 0:00:03.3]} 51. a8=Q
{[%clk 0:00:07.7]} 1-0

[Event "*** Titled Tuesday Blitz"]
[Site "Chess.com"]
[Date "2020.04.21"]
[Round "9"]
[White "Bigfish1995"]
[Black "Tapuah"]
[Result "1-0"]
[WhiteElo "3064"]
[BlackElo "2850"]
[TimeControl "180+1"]
[EndTime "11:50:33 PDT"]
[Termination "Bigfish1995 won on time"]

1. d4 {[%clk 0:03:00.9]} 1... Nf6 {[%clk 0:02:59.5]} 2. Bf4 {[%clk 0:03:01.5]}
2... c5 {[%clk 0:02:54.6]} 3. dxc5 {[%clk 0:02:59.5]} 3... Nc6 {[%clk 0:02:52]}
4. Nf3 {[%clk 0:02:41.5]} 4... Qa5+ {[%clk 0:02:47.8]} 5. Nbd2 {[%clk
0:02:37.5]} 5... Qxc5 {[%clk 0:02:41.2]} 6. e4 {[%clk 0:02:35.5]} 6... d6 {[%clk
0:02:36.3]} 7. c3 {[%clk 0:02:30]} 7... g6 {[%clk 0:02:28.2]} 8. Bd3 {[%clk
0:02:08.1]} 8... Bg7 {[%clk 0:02:22.1]} 9. h3 {[%clk 0:01:58.7]} 9... Qb6 {[%clk
0:02:18.7]} 10. Nc4 {[%clk 0:01:57.8]} 10... Qc7 {[%clk 0:02:17.2]} 11. Ne3
{[%clk 0:01:48.9]} 11... O-O {[%clk 0:02:12.4]} 12. O-O {[%clk 0:01:48.6]} 12...
e6 {[%clk 0:02:07.4]} 13. Qe2 {[%clk 0:01:33.5]} 13... h6 {[%clk 0:01:58.6]} 14.
Rad1 {[%clk 0:01:28.3]} 14... e5 {[%clk 0:01:55.3]} 15. Bh2 {[%clk 0:01:27.6]}
15... Be6 {[%clk 0:01:55.4]} 16. c4 {[%clk 0:01:18.5]} 16... Ne7 {[%clk
0:01:35.9]} 17. Nd5 {[%clk 0:01:16.2]} 17... Nexd5 {[%clk 0:01:29.7]} 18. cxd5
{[%clk 0:01:12.1]} 18... Bd7 {[%clk 0:01:29.2]} 19. Nd2 {[%clk 0:01:06.2]} 19...
Rac8 {[%clk 0:01:25.9]} 20. Qe3 {[%clk 0:00:58.3]} 20... b5 {[%clk 0:01:15.5]}
21. Nb3 {[%clk 0:00:51.7]} 21... Qb6 {[%clk 0:01:04.2]} 22. Qxb6 {[%clk
0:00:49.8]} 22... axb6 {[%clk 0:01:03.9]} 23. a3 {[%clk 0:00:50.4]} 23... b4
{[%clk 0:01:01.2]} 24. Ra1 {[%clk 0:00:47.1]} 24... Ba4 {[%clk 0:00:49.8]} 25.
Nd2 {[%clk 0:00:47.1]} 25... Bc2 {[%clk 0:00:49.7]} 26. Ba6 {[%clk 0:00:47.3]}
26... Ra8 {[%clk 0:00:46.1]} 27. axb4 {[%clk 0:00:47]} 27... Nxe4 {[%clk
0:00:45.3]} 28. Rfc1 {[%clk 0:00:38.9]} 28... Nxd2 {[%clk 0:00:42.2]} 29. Rxc2
{[%clk 0:00:39.2]} 29... Nb3 {[%clk 0:00:42.1]} 30. Ra3 {[%clk 0:00:39.7]} 30...
Nd4 {[%clk 0:00:39.3]} 31. Rc7 {[%clk 0:00:36.8]} 31... b5 {[%clk 0:00:33.6]}
32. Kf1 {[%clk 0:00:36]} 32... Rfb8 {[%clk 0:00:32.4]} 33. f3 {[%clk 0:00:33.6]}
33... Rb6 {[%clk 0:00:22]} 34. Bb7 {[%clk 0:00:33]} 34... Rxa3 {[%clk
0:00:15.4]} 35. bxa3 {[%clk 0:00:33.9]} 35... Bf6 {[%clk 0:00:08.3]} 36. Bg1
{[%clk 0:00:32.9]} 36... Kg7 {[%clk 0:00:08.1]} 37. Rd7 {[%clk 0:00:26.4]} 37...
Kf8 {[%clk 0:00:06.8]} 38. Be3 {[%clk 0:00:22.5]} 38... Ke8 {[%clk 0:00:06.8]}
39. Bxd4 {[%clk 0:00:10.8]} 39... exd4 {[%clk 0:00:05.1]} 40. Bc6 {[%clk
0:00:11.3]} 40... Kf8 {[%clk 0:00:04.2]} 41. Ra7 {[%clk 0:00:11.8]} 41... d3
{[%clk 0:00:02.9]} 42. Ke1 {[%clk 0:00:08.3]} 42... Bc3+ {[%clk 0:00:02.5]} 43.
Kd1 {[%clk 0:00:08.2]} 43... Rb8 {[%clk 0:00:01.6]} 44. Ra5 {[%clk 0:00:07.9]}
44... Rd8 {[%clk 0:00:01.2]} 45. Bxb5 {[%clk 0:00:05.6]} 1-0

[Event "*** Titled Tuesday Blitz"]
[Site "Chess.com"]
[Date "2020.04.21"]
[Round "9"]
[White "nfds"]
[Black "Richarzard69"]
[Result "1-0"]
[WhiteElo "2543"]
[BlackElo "2286"]
[TimeControl "180+1"]
[EndTime "11:50:33 PDT"]
[Termination "nfds won on time"]

1. d4 {[%clk 0:03:00.9]} 1... d5 {[%clk 0:02:53]} 2. Nf3 {[%clk 0:03:00]} 2...
Nf6 {[%clk 0:02:50.6]} 3. Bf4 {[%clk 0:02:55.6]} 3... c5 {[%clk 0:02:48.3]} 4.
e3 {[%clk 0:02:53.4]} 4... Nc6 {[%clk 0:02:45.3]} 5. Be2 {[%clk 0:02:52]} 5...
cxd4 {[%clk 0:02:40.8]} 6. exd4 {[%clk 0:02:51.2]} 6... Bf5 {[%clk 0:02:40.4]}
7. O-O {[%clk 0:02:50.3]} 7... e6 {[%clk 0:02:40.1]} 8. c3 {[%clk 0:02:48.6]}
8... Bd6 {[%clk 0:02:38.2]} 9. Bg5 {[%clk 0:02:42.7]} 9... h6 {[%clk 0:02:37.9]}
10. Bh4 {[%clk 0:02:41.9]} 10... O-O {[%clk 0:02:37.9]} 11. Nbd2 {[%clk
0:02:40.7]} 11... Be7 {[%clk 0:02:36.7]} 12. Qb3 {[%clk 0:02:35.6]} 12... Rb8
{[%clk 0:02:15.2]} 13. a4 {[%clk 0:02:25.4]} 13... a6 {[%clk 0:02:12.7]} 14.
Rfe1 {[%clk 0:02:12.4]} 14... b5 {[%clk 0:01:51.1]} 15. axb5 {[%clk 0:02:08.5]}
15... axb5 {[%clk 0:01:52]} 16. Bg3 {[%clk 0:02:06.2]} 16... Bd6 {[%clk
0:01:47.6]} 17. Ne5 {[%clk 0:02:02.5]} 17... Bxe5 {[%clk 0:01:29.9]} 18. dxe5
{[%clk 0:01:57.4]} 18... Nd7 {[%clk 0:01:10.9]} 19. Nf3 {[%clk 0:01:55.6]} 19...
b4 {[%clk 0:01:07.4]} 20. c4 {[%clk 0:01:45.7]} 20... Na5 {[%clk 0:01:02.5]} 21.
Qa4 {[%clk 0:01:39.7]} 21... Nxc4 {[%clk 0:00:53.9]} 22. Bxc4 {[%clk 0:01:35.9]}
22... dxc4 {[%clk 0:00:54.7]} 23. Nd4 {[%clk 0:01:24.6]} 23... Nc5 {[%clk
0:00:48.6]} 24. Qd1 {[%clk 0:01:22.9]} 24... Nd3 {[%clk 0:00:40.7]} 25. Nc6
{[%clk 0:01:22.3]} 25... Qe8 {[%clk 0:00:33.1]} 26. Nxb8 {[%clk 0:01:21.2]}
26... Qxb8 {[%clk 0:00:29.5]} 27. Re2 {[%clk 0:01:17.7]} 27... Rd8 {[%clk
0:00:27.9]} 28. Qa4 {[%clk 0:01:06.2]} 28... Qb6 {[%clk 0:00:24.4]} 29. Kh1
{[%clk 0:00:46]} 29... Qd4 {[%clk 0:00:23.8]} 30. Qa2 {[%clk 0:00:42]} 30... b3
{[%clk 0:00:22.8]} 31. Qa3 {[%clk 0:00:40.6]} 31... Nc5 {[%clk 0:00:20.2]} 32.
f3 {[%clk 0:00:33.7]} 32... Bd3 {[%clk 0:00:17.2]} 33. Bf2 {[%clk 0:00:31.6]}
33... Qd5 {[%clk 0:00:14.5]} 34. Ree1 {[%clk 0:00:26.5]} 34... Nd7 {[%clk
0:00:15.1]} 35. Qe7 {[%clk 0:00:23.9]} 35... Nf8 {[%clk 0:00:15.1]} 36. Ra7
{[%clk 0:00:22.1]} 36... Bg6 {[%clk 0:00:13.7]} 37. Rc7 {[%clk 0:00:17.7]} 37...
Qd2 {[%clk 0:00:13.4]} 38. Kg1 {[%clk 0:00:16.7]} 38... c3 {[%clk 0:00:12.9]}
39. Rxc3 {[%clk 0:00:13.8]} 39... Qxb2 {[%clk 0:00:11.5]} 40. Rxb3 {[%clk
0:00:13.1]} 40... Qxb3 {[%clk 0:00:07.3]} 41. Qxd8 {[%clk 0:00:12.6]} 41... Qc3
{[%clk 0:00:07]} 42. Rf1 {[%clk 0:00:07.9]} 42... Bd3 {[%clk 0:00:06.5]} 43. Rd1
{[%clk 0:00:06.5]} 43... Bf5 {[%clk 0:00:07.4]} 44. Qe7 {[%clk 0:00:04.1]} 1-0